[Event "Titled Tuesday Blitz November 22 Early 2022"]
[White "Szente Varga, Fruzsina"]
[Black "Cramling Bellon, Anna"]
[WhiteFideId "712264"]
[BlackFideId "32009232"]
[WhiteElo "1994"]
[BlackElo "1972"]
[Result "1/2-1/2"]
[Round "05"]
[TimeControl "180+1"]
[Date "2022.11.23"]
[WhiteClock "0:01:24"]
[BlackClock "0:00:03"]

1. e4 {[%clk 0:02:55]}  c5 {[%clk 0:02:59]} 2. Nf3 {[%clk 0:02:54]}  e6 {[%clk 0:02:58]} 3. b3 {[%clk 0:02:53]}  Nf6 {[%clk 0:02:53]} 4. e5 {[%clk 0:02:49]}  Nd5 {[%clk 0:02:53]} 5. Bb2 {[%clk 0:02:46]}  Nc6 {[%clk 0:02:43]} 6. Bb5 {[%clk 0:02:45]}  d6 {[%clk 0:02:40]} 7. O-O {[%clk 0:02:43]}  Bd7 {[%clk 0:02:33]} 8. exd6 {[%clk 0:02:33]}  Nf6 {[%clk 0:02:33]} 9. d4 {[%clk 0:02:28]}  Bxd6 {[%clk 0:02:32]} 10. d5 {[%clk 0:02:13]}  exd5 {[%clk 0:01:56]} 11. Re1+ {[%clk 0:02:12]}  Be6 {[%clk 0:01:52]} 12. Ng5 {[%clk 0:02:03]}  O-O {[%clk 0:01:35]} 13. Nxe6 {[%clk 0:02:03]}  fxe6 {[%clk 0:01:36]} 14. Rxe6 {[%clk 0:02:03]}  d4 {[%clk 0:00:23]} 15. Nd2 {[%clk 0:01:57]}  Qd7 {[%clk 0:00:22]} 16. Bc4 {[%clk 0:01:57]}  Kh8 {[%clk 0:00:22]} 17. Nf3 {[%clk 0:01:54]}  Na5 {[%clk 0:00:21]} 18. Qe2 {[%clk 0:01:50]}  Nxc4 {[%clk 0:00:21]} 19. Qxc4 {[%clk 0:01:51]}  b5 {[%clk 0:00:20]} 20. Qe2 {[%clk 0:01:49]}  Rae8 {[%clk 0:00:20]} 21. Re1 {[%clk 0:01:49]}  Rxe6 {[%clk 0:00:17]} 22. Qxe6 {[%clk 0:01:50]}  Re8 {[%clk 0:00:11]} 23. Qxd7 {[%clk 0:01:42]}  Rxe1+ {[%clk 0:00:10]} 24. Nxe1 {[%clk 0:01:43]}  Nxd7 {[%clk 0:00:11]} 25. b4 {[%clk 0:01:41]}  Kg8 {[%clk 0:00:10]} 26. bxc5 {[%clk 0:01:41]}  Bxc5 {[%clk 0:00:09]} 27. Nd3 {[%clk 0:01:42]}  Bb6 {[%clk 0:00:10]} 28. Nb4 {[%clk 0:01:37]}  Nf6 {[%clk 0:00:10]} 29. Nc6 {[%clk 0:01:37]}  Nd5 {[%clk 0:00:03]} 30. Nxd4 {[%clk 0:01:35]}  Nb4 {[%clk 0:00:03]} 31. a3 {[%clk 0:01:35]}  Bxd4 {[%clk 0:00:03]} 32. Bxd4 {[%clk 0:01:34]}  Nxc2 {[%clk 0:00:03]} 33. Bxa7 {[%clk 0:01:34]}  Nxa3 {[%clk 0:00:04]} 34. Bc5 {[%clk 0:01:34]}  Nc4 {[%clk 0:00:04]} 35. Kf1 {[%clk 0:01:34]}  Kf7 {[%clk 0:00:05]} 36. Ke2 {[%clk 0:01:34]}  Ke6 {[%clk 0:00:05]} 37. Kd3 {[%clk 0:01:35]}  Kd5 {[%clk 0:00:06]} 38. Bb4 {[%clk 0:01:35]}  Ne5+ {[%clk 0:00:06]} 39. Kc3 {[%clk 0:01:33]}  Nc6 {[%clk 0:00:07]} 40. Bf8 {[%clk 0:01:33]}  g6 {[%clk 0:00:07]} 41. f3 {[%clk 0:01:33]}  h5 {[%clk 0:00:06]} 42. h4 {[%clk 0:01:33]}  Na5 {[%clk 0:00:05]} 43. Kb4 {[%clk 0:01:32]}  Nc4 {[%clk 0:00:03]} 44. Kxb5 {[%clk 0:01:33]}  Ne3 {[%clk 0:00:03]} 45. g3 {[%clk 0:01:32]}  Nf5 {[%clk 0:00:04]} 46. g4 {[%clk 0:01:31]}  hxg4 {[%clk 0:00:03]} 47. fxg4 {[%clk 0:01:31]}  Nxh4 {[%clk 0:00:04]} 48. Be7 {[%clk 0:01:31]}  Nf3 {[%clk 0:00:04]} 49. Kb4 {[%clk 0:01:29]}  Ke4 {[%clk 0:00:05]} 50. Kc4 {[%clk 0:01:29]}  Kf4 {[%clk 0:00:05]} 51. Kd3 {[%clk 0:01:26]}  Kxg4 {[%clk 0:00:05]} 52. Ke3 {[%clk 0:01:27]}  Ne5 {[%clk 0:00:03]} 53. Kf2 {[%clk 0:01:24]}  g5 {[%clk 0:00:03]} 54. Bxg5 {[%clk 0:01:24]} 1/2-1/2


[Site "https://www.chess.com"]

[Event "Titled Tuesday Blitz November 22 Early 2022"]
[White "Tabatabaei, M. Amin"]
[Black "Papasimakopoulos, Alexandros"]
[WhiteFideId "12521213"]
[BlackFideId "4244125"]
[WhiteElo "2557"]
[BlackElo "2365"]
[Result "1-0"]
[Round "05"]
[TimeControl "180+1"]
[Date "2022.11.22"]
[WhiteClock "0:00:13"]
[BlackClock "0:00:22"]

1. d4 {[%clk 0:03:00]}  e6 {[%clk 0:02:58]} 2. e4 {[%clk 0:03:00]}  d5 {[%clk 0:02:58]} 3. Bd3 {[%clk 0:02:58]}  c5 {[%clk 0:02:57]} 4. exd5 {[%clk 0:02:45]}  exd5 {[%clk 0:02:58]} 5. dxc5 {[%clk 0:02:44]}  Bxc5 {[%clk 0:02:58]} 6. Nf3 {[%clk 0:02:44]}  Nf6 {[%clk 0:02:58]} 7. O-O {[%clk 0:02:44]}  O-O {[%clk 0:02:58]} 8. Bg5 {[%clk 0:02:44]}  Nc6 {[%clk 0:02:58]} 9. Nc3 {[%clk 0:02:44]}  Be6 {[%clk 0:02:57]} 10. Qd2 {[%clk 0:02:39]}  Re8 {[%clk 0:02:56]} 11. Rad1 {[%clk 0:02:33]}  h6 {[%clk 0:02:56]} 12. Bh4 {[%clk 0:02:32]}  d4 {[%clk 0:02:48]} 13. Bxf6 {[%clk 0:02:30]}  Qxf6 {[%clk 0:02:42]} 14. Ne4 {[%clk 0:02:30]}  Qe7 {[%clk 0:02:42]} 15. a3 {[%clk 0:02:31]}  Bb6 {[%clk 0:02:40]} 16. Rfe1 {[%clk 0:02:29]}  Rad8 {[%clk 0:02:38]} 17. Qf4 {[%clk 0:02:29]}  Bc7 {[%clk 0:02:34]} 18. Qd2 {[%clk 0:02:22]}  a6 {[%clk 0:02:33]} 19. h3 {[%clk 0:02:22]}  Bb8 {[%clk 0:02:32]} 20. b4 {[%clk 0:02:19]}  Qc7 {[%clk 0:02:28]} 21. Ng3 {[%clk 0:02:08]}  Qf4 {[%clk 0:02:24]} 22. Qxf4 {[%clk 0:01:57]}  Bxf4 {[%clk 0:02:25]} 23. Be4 {[%clk 0:01:49]}  Bxg3 {[%clk 0:02:11]} 24. fxg3 {[%clk 0:01:50]}  Bd5 {[%clk 0:02:11]} 25. Bxd5 {[%clk 0:01:46]}  Rxe1+ {[%clk 0:02:11]} 26. Nxe1 {[%clk 0:01:45]}  Rxd5 {[%clk 0:02:11]} 27. Nd3 {[%clk 0:01:46]}  b6 {[%clk 0:02:06]} 28. Re1 {[%clk 0:01:45]}  Kf8 {[%clk 0:02:06]} 29. g4 {[%clk 0:01:44]}  Rd8 {[%clk 0:01:55]} 30. Kf2 {[%clk 0:01:42]}  Rc8 {[%clk 0:01:54]} 31. Kf3 {[%clk 0:01:42]}  Na7 {[%clk 0:01:53]} 32. Re4 {[%clk 0:01:15]}  Rxc2 {[%clk 0:01:42]} 33. Rxd4 {[%clk 0:01:09]}  Nb5 {[%clk 0:01:42]} 34. Rd8+ {[%clk 0:01:02]}  Ke7 {[%clk 0:01:42]} 35. Rb8 {[%clk 0:01:03]}  Rc3 {[%clk 0:01:37]} 36. Ke4 {[%clk 0:01:00]}  Rc4+ {[%clk 0:01:36]} 37. Ke3 {[%clk 0:00:59]}  Nxa3 {[%clk 0:01:24]} 38. Rb7+ {[%clk 0:00:54]}  Kf8 {[%clk 0:01:19]} 39. Rxb6 {[%clk 0:00:53]}  f6 {[%clk 0:01:19]} 40. Rxa6 {[%clk 0:00:52]}  Nc2+ {[%clk 0:01:19]} 41. Kd2 {[%clk 0:00:43]}  Nxb4 {[%clk 0:01:19]} 42. Ra4 {[%clk 0:00:43]}  Rc2+ {[%clk 0:01:19]} 43. Kd1 {[%clk 0:00:41]}  Nxd3 {[%clk 0:01:15]} 44. Kxc2 {[%clk 0:00:39]}  Ne1+ {[%clk 0:01:15]} 45. Kd2 {[%clk 0:00:38]}  Nxg2 {[%clk 0:01:16]} 46. Ke2 {[%clk 0:00:36]}  Kf7 {[%clk 0:01:09]} 47. Kf2 {[%clk 0:00:34]}  Nh4 {[%clk 0:01:09]} 48. Ra7+ {[%clk 0:00:32]}  Kg8 {[%clk 0:01:07]} 49. Kg3 {[%clk 0:00:32]}  Ng6 {[%clk 0:01:07]} 50. Kf3 {[%clk 0:00:31]}  Ne5+ {[%clk 0:00:57]} 51. Ke4 {[%clk 0:00:31]}  Kh7 {[%clk 0:00:55]} 52. Kf5 {[%clk 0:00:31]}  Nf3 {[%clk 0:00:54]} 53. Ra3 {[%clk 0:00:29]}  Nd4+ {[%clk 0:00:53]} 54. Ke4 {[%clk 0:00:29]}  Nb5 {[%clk 0:00:53]} 55. Rd3 {[%clk 0:00:26]}  Nc7 {[%clk 0:00:53]} 56. Kf5 {[%clk 0:00:20]}  Na6 {[%clk 0:00:23]} 57. Rc3 {[%clk 0:00:18]}  Nb4 {[%clk 0:00:21]} 58. Ke4 {[%clk 0:00:17]}  Kg6 {[%clk 0:00:21]} 59. Rc4 {[%clk 0:00:17]}  Na6 {[%clk 0:00:19]} 60. Kd5 {[%clk 0:00:17]}  Kg5 {[%clk 0:00:19]} 61. Kc6 {[%clk 0:00:17]}  Kh4 {[%clk 0:00:18]} 62. Kb7 {[%clk 0:00:14]}  Kxh3 {[%clk 0:00:18]} 63. Kxa6 {[%clk 0:00:14]}  Kh4 {[%clk 0:00:16]} 64. Kb5 {[%clk 0:00:14]}  h5 {[%clk 0:00:17]} 65. gxh5+ {[%clk 0:00:14]}  Kxh5 {[%clk 0:00:18]} 66. Kc5 {[%clk 0:00:12]}  f5 {[%clk 0:00:18]} 67. Kd4 {[%clk 0:00:12]}  Kg4 {[%clk 0:00:18]} 68. Ke3+ {[%clk 0:00:13]}  Kg3 {[%clk 0:00:19]} 69. Ke2 {[%clk 0:00:14]}  g5 {[%clk 0:00:19]} 70. Kf1 {[%clk 0:00:14]}  f4 {[%clk 0:00:19]} 71. Rc5 {[%clk 0:00:14]}  g4 {[%clk 0:00:19]} 72. Rc3+ {[%clk 0:00:14]}  f3 {[%clk 0:00:19]} 73. Rb3 {[%clk 0:00:15]}  Kh3 {[%clk 0:00:20]} 74. Kf2 {[%clk 0:00:14]}  Kh2 {[%clk 0:00:20]} 75. Rb8 {[%clk 0:00:12]}  g3+ {[%clk 0:00:20]} 76. Kxf3 {[%clk 0:00:12]}  g2 {[%clk 0:00:21]} 77. Rh8+ {[%clk 0:00:13]}  Kg1 {[%clk 0:00:22]} 78. Rg8 {[%clk 0:00:11]}  Kh1 {[%clk 0:00:22]} 79. Kf2 {[%clk 0:00:11]}  g1=Q+ {[%clk 0:00:20]} 80. Rxg1+ {[%clk 0:00:12]}  Kh2 {[%clk 0:00:21]} 81. Rg3 {[%clk 0:00:12]}  Kh1 {[%clk 0:00:22]} 82. Rh3# {[%clk 0:00:13]} 1-0


[Site "https://www.chess.com"]

[Event "Titled Tuesday Blitz November 22 Early 2022"]
[White "Thorhallsson, Simon"]
[Black "Fernandez Hernandez, Gerardo"]
[WhiteFideId "2310090"]
[BlackFideId "2207400"]
[WhiteElo "2109"]
[BlackElo "2249"]
[Result "1-0"]
[Round "05"]
[TimeControl "180+1"]
[Date "2022.11.23"]
[WhiteClock "0:00:09"]
[BlackClock "0:00:01"]

1. Nf3 {[%clk 0:03:00]}  Nf6 {[%clk 0:02:59]} 2. d4 {[%clk 0:02:59]}  g6 {[%clk 0:02:59]} 3. Bf4 {[%clk 0:02:58]}  Bg7 {[%clk 0:02:59]} 4. Nc3 {[%clk 0:02:57]}  d5 {[%clk 0:02:58]} 5. h4 {[%clk 0:02:56]}  Bg4 {[%clk 0:02:45]} 6. e3 {[%clk 0:02:53]}  Nbd7 {[%clk 0:02:34]} 7. Qd2 {[%clk 0:02:53]}  Bxf3 {[%clk 0:02:27]} 8. gxf3 {[%clk 0:02:53]}  c6 {[%clk 0:02:15]} 9. O-O-O {[%clk 0:02:52]}  Nh5 {[%clk 0:02:09]} 10. Bh2 {[%clk 0:02:44]}  O-O {[%clk 0:02:06]} 11. Be2 {[%clk 0:02:39]}  e5 {[%clk 0:01:48]} 12. dxe5 {[%clk 0:02:38]}  Nxe5 {[%clk 0:01:48]} 13. Bxe5 {[%clk 0:02:31]}  Bxe5 {[%clk 0:01:47]} 14. f4 {[%clk 0:02:32]}  Bxc3 {[%clk 0:01:35]} 15. Qxc3 {[%clk 0:02:33]}  Nf6 {[%clk 0:01:32]} 16. h5 {[%clk 0:02:32]}  Ne4 {[%clk 0:01:25]} 17. Qe1 {[%clk 0:02:32]}  Qf6 {[%clk 0:01:08]} 18. Bf3 {[%clk 0:02:26]}  Nc5 {[%clk 0:01:00]} 19. Qb4 {[%clk 0:02:07]}  b6 {[%clk 0:00:53]} 20. Qd4 {[%clk 0:01:33]}  Qxd4 {[%clk 0:00:49]} 21. Rxd4 {[%clk 0:01:34]}  f5 {[%clk 0:00:35]} 22. Rdd1 {[%clk 0:01:24]}  Kg7 {[%clk 0:00:32]} 23. c4 {[%clk 0:01:14]}  dxc4 {[%clk 0:00:26]} 24. Rd6 {[%clk 0:00:55]}  Rac8 {[%clk 0:00:16]} 25. Bxc6 {[%clk 0:00:42]}  Rf6 {[%clk 0:00:14]} 26. h6+ {[%clk 0:00:34]}  Kf7 {[%clk 0:00:14]} 27. Bd5+ {[%clk 0:00:32]}  Ke7 {[%clk 0:00:14]} 28. Rxf6 {[%clk 0:00:31]}  Kxf6 {[%clk 0:00:15]} 29. Bxc4 {[%clk 0:00:24]}  Nd3+ {[%clk 0:00:14]} 30. Kd2 {[%clk 0:00:24]}  Nxf2 {[%clk 0:00:11]} 31. Rc1 {[%clk 0:00:23]}  Ne4+ {[%clk 0:00:09]} 32. Kd1 {[%clk 0:00:21]}  Rd8+ {[%clk 0:00:08]} 33. Ke1 {[%clk 0:00:19]}  Rd2 {[%clk 0:00:08]} 34. Be2 {[%clk 0:00:13]}  Rxb2 {[%clk 0:00:07]} 35. Rc7 {[%clk 0:00:13]}  Rb1+ {[%clk 0:00:06]} 36. Bd1 {[%clk 0:00:10]}  Nf2 {[%clk 0:00:03]} 37. Kxf2 {[%clk 0:00:09]}  Rxd1 {[%clk 0:00:04]} 38. Rxa7 {[%clk 0:00:10]}  Rd2+ {[%clk 0:00:02]} 39. Kf3 {[%clk 0:00:10]}  Rh2 {[%clk 0:00:01]} 40. Rb7 {[%clk 0:00:10]}  Rxa2 {[%clk 0:00:01]} 41. Rxh7 {[%clk 0:00:09]} 1-0


[Site "https://www.chess.com"]

[Event "Titled Tuesday Blitz November 22 Early 2022"]
[White "Tologon tegin, Semetei"]
[Black "Jumabayev, Rinat"]
[WhiteFideId "13800574"]
[BlackFideId "13702661"]
[WhiteElo "2282"]
[BlackElo "2561"]
[Result "1-0"]
[Round "05"]
[TimeControl "180+1"]
[Date "2022.11.23"]
[WhiteClock "0:00:53"]
[BlackClock "0:00:11"]

1. e4 {[%clk 0:02:44]}  c5 {[%clk 0:02:57]} 2. Nf3 {[%clk 0:02:43]}  Nc6 {[%clk 0:02:58]} 3. d4 {[%clk 0:02:43]}  cxd4 {[%clk 0:02:59]} 4. Nxd4 {[%clk 0:02:43]}  Nf6 {[%clk 0:03:00]} 5. Nc3 {[%clk 0:02:43]}  d6 {[%clk 0:03:00]} 6. Bg5 {[%clk 0:02:42]}  e6 {[%clk 0:03:01]} 7. Qd3 {[%clk 0:02:40]}  a6 {[%clk 0:02:59]} 8. Nxc6 {[%clk 0:02:37]}  bxc6 {[%clk 0:02:59]} 9. Qg3 {[%clk 0:02:36]}  h6 {[%clk 0:02:41]} 10. Be3 {[%clk 0:02:22]}  Rb8 {[%clk 0:02:29]} 11. O-O-O {[%clk 0:02:17]}  Qa5 {[%clk 0:02:29]} 12. Bc4 {[%clk 0:02:16]}  Qb4 {[%clk 0:01:36]} 13. Bb3 {[%clk 0:02:15]}  c5 {[%clk 0:01:16]} 14. a3 {[%clk 0:01:59]}  Qb6 {[%clk 0:01:14]} 15. e5 {[%clk 0:01:53]}  dxe5 {[%clk 0:01:12]} 16. Qxe5 {[%clk 0:01:51]}  Be7 {[%clk 0:01:09]} 17. Na4 {[%clk 0:01:24]}  Qb5 {[%clk 0:01:08]} 18. Bc4 {[%clk 0:01:17]}  Qxc4 {[%clk 0:00:50]} 19. Qxb8 {[%clk 0:01:16]}  O-O {[%clk 0:00:50]} 20. Nb6 {[%clk 0:01:14]}  Qb5 {[%clk 0:00:46]} 21. Qc7 {[%clk 0:01:12]}  Ne4 {[%clk 0:00:12]} 22. Qxe7 {[%clk 0:00:53]}  Qxb6 {[%clk 0:00:11]} 23. f3 {[%clk 0:00:53]}  Qc6 {[%clk 0:00:11]} 1-0


[Site "https://www.chess.com"]

[Event "Titled Tuesday Blitz November 22 Early 2022"]
[White "Topalov, Aleksandar"]
[Black "Malka, Samuel"]
[WhiteFideId "925659"]
[BlackFideId "20643675"]
[WhiteElo "2179"]
[BlackElo "2452"]
[Result "0-1"]
[Round "05"]
[TimeControl "180+1"]
[Date "2022.11.23"]
[WhiteClock "0:01:38"]
[BlackClock "0:00:16"]

1. b3 {[%clk 0:03:00]}  e5 {[%clk 0:02:59]} 2. Bb2 {[%clk 0:03:00]}  Nc6 {[%clk 0:03:00]} 3. c4 {[%clk 0:03:00]}  Nf6 {[%clk 0:02:58]} 4. e3 {[%clk 0:03:00]}  d5 {[%clk 0:02:59]} 5. cxd5 {[%clk 0:03:00]}  Nxd5 {[%clk 0:02:59]} 6. a3 {[%clk 0:03:00]}  Bd6 {[%clk 0:02:52]} 7. Qc2 {[%clk 0:02:59]}  Qe7 {[%clk 0:02:46]} 8. d3 {[%clk 0:02:59]}  Be6 {[%clk 0:02:38]} 9. Nf3 {[%clk 0:02:57]}  g5 {[%clk 0:02:36]} 10. h3 {[%clk 0:02:56]}  h5 {[%clk 0:02:36]} 11. Nbd2 {[%clk 0:02:55]}  O-O {[%clk 0:02:34]} 12. Nc4 {[%clk 0:02:52]}  f6 {[%clk 0:02:28]} 13. g3 {[%clk 0:02:52]}  Kf7 {[%clk 0:02:07]} 14. Bg2 {[%clk 0:02:51]}  Rad8 {[%clk 0:02:00]} 15. d4 {[%clk 0:02:43]}  exd4 {[%clk 0:01:55]} 16. Nxd4 {[%clk 0:02:43]}  Nxd4 {[%clk 0:01:55]} 17. Bxd4 {[%clk 0:02:39]}  c5 {[%clk 0:01:52]} 18. Bb2 {[%clk 0:02:39]}  Kg7 {[%clk 0:01:44]} 19. Nxd6 {[%clk 0:02:31]}  Rxd6 {[%clk 0:01:39]} 20. O-O {[%clk 0:02:30]}  b6 {[%clk 0:01:35]} 21. Rfd1 {[%clk 0:02:23]}  Rfd8 {[%clk 0:01:35]} 22. e4 {[%clk 0:02:21]}  Nc7 {[%clk 0:01:28]} 23. e5 {[%clk 0:02:18]}  Rxd1+ {[%clk 0:01:28]} 24. Rxd1 {[%clk 0:02:18]}  Rxd1+ {[%clk 0:01:19]} 25. Qxd1 {[%clk 0:02:17]}  f5 {[%clk 0:01:09]} 26. Qxh5 {[%clk 0:02:16]}  Nb5 {[%clk 0:00:54]} 27. Bc6 {[%clk 0:01:49]}  Nd4 {[%clk 0:00:53]} 28. Be8 {[%clk 0:01:50]}  Bxb3 {[%clk 0:00:27]} 29. e6 {[%clk 0:01:47]}  Bxe6 {[%clk 0:00:23]} 30. Qg6+ {[%clk 0:01:47]}  Kf8 {[%clk 0:00:23]} 31. Ba4 {[%clk 0:01:47]}  Bd5 {[%clk 0:00:16]} 32. Bxd4 {[%clk 0:01:38]}  Qe1+ {[%clk 0:00:16]} 0-1


[Site "https://www.chess.com"]

[Event "Titled Tuesday Blitz November 22 Early 2022"]
[White "Unat, Can Haktan"]
[Black "Cruz Mendez, Jean Marco"]
[WhiteFideId "6398073"]
[BlackFideId "3526402"]
[WhiteElo "2146"]
[BlackElo "2064"]
[Result "1-0"]
[Round "05"]
[TimeControl "180+1"]
[Date "2022.11.23"]
[WhiteClock "0:00:06"]
[BlackClock "0:00:13"]

1. e4 {[%clk 0:02:55]}  c5 {[%clk 0:02:59]} 2. Nf3 {[%clk 0:02:55]}  Nc6 {[%clk 0:02:59]} 3. Bb5 {[%clk 0:02:54]}  g6 {[%clk 0:02:58]} 4. c3 {[%clk 0:02:54]}  Nf6 {[%clk 0:02:53]} 5. e5 {[%clk 0:02:53]}  Nd5 {[%clk 0:02:53]} 6. O-O {[%clk 0:02:53]}  Bg7 {[%clk 0:02:52]} 7. d4 {[%clk 0:02:53]}  cxd4 {[%clk 0:02:49]} 8. cxd4 {[%clk 0:02:54]}  O-O {[%clk 0:02:46]} 9. Bc4 {[%clk 0:02:55]}  Nb6 {[%clk 0:02:45]} 10. Bb3 {[%clk 0:02:55]}  d5 {[%clk 0:02:44]} 11. Nc3 {[%clk 0:02:53]}  Bg4 {[%clk 0:02:40]} 12. Be3 {[%clk 0:02:53]}  e6 {[%clk 0:02:37]} 13. h3 {[%clk 0:02:53]}  Bxf3 {[%clk 0:02:37]} 14. Qxf3 {[%clk 0:02:54]}  a6 {[%clk 0:02:36]} 15. Rac1 {[%clk 0:02:53]}  Rc8 {[%clk 0:02:35]} 16. Rfd1 {[%clk 0:02:53]}  Na5 {[%clk 0:02:32]} 17. Na4 {[%clk 0:02:43]}  Nxa4 {[%clk 0:02:24]} 18. Bxa4 {[%clk 0:02:43]}  b5 {[%clk 0:02:25]} 19. Bb3 {[%clk 0:02:42]}  Nc4 {[%clk 0:02:21]} 20. Bxc4 {[%clk 0:02:25]}  bxc4 {[%clk 0:02:22]} 21. Bd2 {[%clk 0:02:21]}  Rb8 {[%clk 0:02:21]} 22. Bc3 {[%clk 0:02:20]}  Qd7 {[%clk 0:02:20]} 23. Qe2 {[%clk 0:02:15]}  Rfc8 {[%clk 0:02:15]} 24. f4 {[%clk 0:02:15]}  Qa4 {[%clk 0:02:08]} 25. g4 {[%clk 0:02:01]}  Bh6 {[%clk 0:01:54]} 26. Qf3 {[%clk 0:01:52]}  Qd7 {[%clk 0:01:39]} 27. Rc2 {[%clk 0:01:49]}  a5 {[%clk 0:01:30]} 28. Rg2 {[%clk 0:01:46]}  a4 {[%clk 0:01:29]} 29. f5 {[%clk 0:01:43]}  Bf8 {[%clk 0:01:27]} 30. Rf1 {[%clk 0:01:31]}  a3 {[%clk 0:01:26]} 31. bxa3 {[%clk 0:01:31]}  Bxa3 {[%clk 0:01:26]} 32. h4 {[%clk 0:01:12]}  Bb4 {[%clk 0:01:22]} 33. h5 {[%clk 0:01:12]}  Bxc3 {[%clk 0:01:18]} 34. Qxc3 {[%clk 0:01:13]}  Rb5 {[%clk 0:00:59]} 35. hxg6 {[%clk 0:01:10]}  hxg6 {[%clk 0:00:58]} 36. fxg6 {[%clk 0:01:05]}  fxg6 {[%clk 0:00:55]} 37. Qc2 {[%clk 0:00:58]}  Kg7 {[%clk 0:00:38]} 38. Rf6 {[%clk 0:00:54]}  Qe8 {[%clk 0:00:38]} 39. Rgf2 {[%clk 0:00:41]}  Rcb8 {[%clk 0:00:36]} 40. Qc3 {[%clk 0:00:39]}  Rb1+ {[%clk 0:00:32]} 41. Kg2 {[%clk 0:00:39]}  R8b7 {[%clk 0:00:29]} 42. Qc2 {[%clk 0:00:16]}  R1b2 {[%clk 0:00:23]} 43. Qxb2 {[%clk 0:00:14]}  Rxb2 {[%clk 0:00:24]} 44. Rxb2 {[%clk 0:00:14]}  Qd7 {[%clk 0:00:24]} 45. g5 {[%clk 0:00:11]}  Qa7 {[%clk 0:00:24]} 46. Rbf2 {[%clk 0:00:09]}  c3 {[%clk 0:00:20]} 47. Kf1 {[%clk 0:00:08]}  Qa6+ {[%clk 0:00:12]} 48. Ke1 {[%clk 0:00:07]}  Qa7 {[%clk 0:00:13]} 49. Rf7+ {[%clk 0:00:04]}  Qxf7 {[%clk 0:00:12]} 50. Rxf7+ {[%clk 0:00:05]}  Kxf7 {[%clk 0:00:13]} 51. Kd1 {[%clk 0:00:06]} 1-0


[Site "https://www.chess.com"]

[Event "Titled Tuesday Blitz November 22 Early 2022"]
[White "Urazayev, Arystanbek"]
[Black "Begmuratov, Khumoyun"]
[WhiteFideId "13709810"]
[BlackFideId "14210207"]
[WhiteElo "2441"]
[BlackElo "2267"]
[Result "1-0"]
[Round "05"]
[TimeControl "180+1"]
[Date "2022.11.23"]
[WhiteClock "0:00:24"]
[BlackClock "0:00:06"]

1. d4 {[%clk 0:03:00]}  Nf6 {[%clk 0:02:59]} 2. c4 {[%clk 0:03:00]}  e6 {[%clk 0:02:59]} 3. Nc3 {[%clk 0:02:59]}  Bb4 {[%clk 0:02:59]} 4. e3 {[%clk 0:02:59]}  O-O {[%clk 0:02:59]} 5. Bd3 {[%clk 0:02:54]}  d5 {[%clk 0:02:55]} 6. a3 {[%clk 0:02:54]}  Bxc3+ {[%clk 0:02:52]} 7. bxc3 {[%clk 0:02:55]}  dxc4 {[%clk 0:02:52]} 8. Bxc4 {[%clk 0:02:56]}  c5 {[%clk 0:02:53]} 9. Ne2 {[%clk 0:02:56]}  b6 {[%clk 0:02:51]} 10. O-O {[%clk 0:02:56]}  Bb7 {[%clk 0:02:48]} 11. Ba2 {[%clk 0:02:54]}  cxd4 {[%clk 0:02:44]} 12. cxd4 {[%clk 0:02:52]}  Bd5 {[%clk 0:02:39]} 13. Bb1 {[%clk 0:02:52]}  Be4 {[%clk 0:02:37]} 14. Bxe4 {[%clk 0:02:52]}  Nxe4 {[%clk 0:02:38]} 15. f3 {[%clk 0:02:53]}  Nd6 {[%clk 0:02:32]} 16. e4 {[%clk 0:02:53]}  Nc6 {[%clk 0:02:32]} 17. d5 {[%clk 0:02:26]}  exd5 {[%clk 0:02:30]} 18. Qxd5 {[%clk 0:02:27]}  Na5 {[%clk 0:02:04]} 19. Bf4 {[%clk 0:02:14]}  Ndc4 {[%clk 0:02:02]} 20. Nc3 {[%clk 0:01:52]}  Qf6 {[%clk 0:01:59]} 21. Ne2 {[%clk 0:01:42]}  Rad8 {[%clk 0:01:49]} 22. Qg5 {[%clk 0:01:42]}  Qxg5 {[%clk 0:01:29]} 23. Bxg5 {[%clk 0:01:40]}  Rd3 {[%clk 0:01:30]} 24. Nf4 {[%clk 0:01:39]}  Rd2 {[%clk 0:01:21]} 25. Nd5 {[%clk 0:01:39]}  Rb2 {[%clk 0:01:20]} 26. Be7 {[%clk 0:01:11]}  Re8 {[%clk 0:01:15]} 27. Rfb1 {[%clk 0:01:04]}  Rc2 {[%clk 0:01:06]} 28. Rc1 {[%clk 0:01:04]}  Rb2 {[%clk 0:01:04]} 29. Rab1 {[%clk 0:01:00]}  Rxb1 {[%clk 0:00:56]} 30. Rxb1 {[%clk 0:01:00]}  f6 {[%clk 0:00:55]} 31. Bb4 {[%clk 0:00:55]}  Kf7 {[%clk 0:00:28]} 32. Rc1 {[%clk 0:00:55]}  Rc8 {[%clk 0:00:14]} 33. Ne7 {[%clk 0:00:54]}  Rc7 {[%clk 0:00:10]} 34. Nf5 {[%clk 0:00:54]}  Rd7 {[%clk 0:00:10]} 35. Kf2 {[%clk 0:00:41]}  g6 {[%clk 0:00:10]} 36. Ne3 {[%clk 0:00:39]}  b5 {[%clk 0:00:07]} 37. Nd5 {[%clk 0:00:35]}  Nc6 {[%clk 0:00:05]} 38. Bc5 {[%clk 0:00:33]}  N6e5 {[%clk 0:00:05]} 39. Ke2 {[%clk 0:00:30]}  a5 {[%clk 0:00:06]} 40. Rb1 {[%clk 0:00:29]}  Rb7 {[%clk 0:00:06]} 41. f4 {[%clk 0:00:22]}  Nc6 {[%clk 0:00:06]} 42. Kd3 {[%clk 0:00:21]}  Ke6 {[%clk 0:00:03]} 43. a4 {[%clk 0:00:20]}  f5 {[%clk 0:00:03]} 44. axb5 {[%clk 0:00:20]}  Nd6 {[%clk 0:00:01]} 45. Bxd6 {[%clk 0:00:19]}  Kxd6 {[%clk 0:00:02]} 46. Kc4 {[%clk 0:00:19]}  fxe4 {[%clk 0:00:02]} 47. Rd1 {[%clk 0:00:20]}  Nd8 {[%clk 0:00:01]} 48. Nc3+ {[%clk 0:00:19]}  Ke7 {[%clk 0:00:02]} 49. Nxe4 {[%clk 0:00:19]}  Ne6 {[%clk 0:00:03]} 50. g3 {[%clk 0:00:16]}  Rc7+ {[%clk 0:00:03]} 51. Kb3 {[%clk 0:00:17]}  Rb7 {[%clk 0:00:03]} 52. Ka4 {[%clk 0:00:17]}  Rc7 {[%clk 0:00:02]} 53. Re1 {[%clk 0:00:16]}  Rc2 {[%clk 0:00:02]} 54. Ng5 {[%clk 0:00:16]}  Ra2+ {[%clk 0:00:01]} 55. Kb3 {[%clk 0:00:16]}  Rxh2 {[%clk 0:00:02]} 56. Rxe6+ {[%clk 0:00:17]}  Kd7 {[%clk 0:00:03]} 57. Ra6 {[%clk 0:00:17]}  Kc7 {[%clk 0:00:02]} 58. Ne6+ {[%clk 0:00:15]}  Kb7 {[%clk 0:00:02]} 59. Nc5+ {[%clk 0:00:16]}  Kc7 {[%clk 0:00:03]} 60. Rc6+ {[%clk 0:00:16]}  Kb8 {[%clk 0:00:03]} 61. b6 {[%clk 0:00:17]}  Rh3 {[%clk 0:00:03]} 62. b7 {[%clk 0:00:17]}  Rxg3+ {[%clk 0:00:03]} 63. Ka4 {[%clk 0:00:18]}  Ka7 {[%clk 0:00:02]} 64. Ra6+ {[%clk 0:00:17]}  Kb8 {[%clk 0:00:02]} 65. Ra8+ {[%clk 0:00:18]}  Kc7 {[%clk 0:00:03]} 66. Rc8+ {[%clk 0:00:19]}  Kd6 {[%clk 0:00:03]} 67. b8=Q+ {[%clk 0:00:20]}  Kd5 {[%clk 0:00:04]} 68. Qe5+ {[%clk 0:00:20]}  Kc4 {[%clk 0:00:04]} 69. Ne4+ {[%clk 0:00:21]}  Kd3 {[%clk 0:00:05]} 70. Nxg3 {[%clk 0:00:22]}  Kd2 {[%clk 0:00:06]} 71. Qe4 {[%clk 0:00:22]}  Kd1 {[%clk 0:00:06]} 72. Rc2 {[%clk 0:00:23]}  h5 {[%clk 0:00:06]} 73. Qe2# {[%clk 0:00:24]} 1-0


[Site "https://www.chess.com"]